bitfinex/quotes_BTCUSD_20250320
["timestamp","ask_amount","ask_price","bid_price","bid_amount"]
[1742506921508,0.25462145,84544.0,84543.0,0.25241432]
[1742506922134,0.00623045,84544.0,84543.0,0.48898032]
[1742506923304,0.00623045,84544.0,84543.0,0.25241432]
[1742506923992,0.00623045,84544.0,84543.0,0.48898032]
[1742506924666,0.002,84544.0,84543.0,0.48898032]
[1742506928506,0.002,84544.0,84543.0,0.48931892]
[1742506929139,0.002,84544.0,84543.0,0.0003386]
[1742506929313,0.238563,84544.0,84543.0,0.1336186]
[1742506929711,0.24279605,84544.0,84543.0,0.1336186]
[1742506929869,0.00623305,84544.0,84543.0,0.3701846]
[1742506932581,0.002,84544.0,84543.0,0.3701846]
[1742506932770,0.002,84544.0,84543.0,0.3703046]
[1742506933134,0.00623305,84544.0,84543.0,0.3703046]
[1742506936797,0.00623305,84544.0,84543.0,0.1337386]
[1742506937003,0.00623305,84544.0,84543.0,0.3703046]
[1742506937209,0.002,84544.0,84543.0,0.3703046]
[1742506938030,0.00623305,84544.0,84543.0,0.3703046]
[1742506938251,0.002,84544.0,84543.0,0.3703046]
[1742506938490,0.00623305,84544.0,84543.0,0.3703046]
[1742506938688,0.002,84544.0,84543.0,1.16144848]
[1742506938860,0.00623305,84544.0,84543.0,1.16144848]
[1742506939040,0.002,84544.0,84543.0,1.2071751]
[1742506939571,0.0119912,84588.0,84563.0,0.1]
[1742506939723,0.01187116,84580.0,84573.0,0.011824]
[1742506939921,0.035519,84580.0,84578.0,0.236468]
[1742506940126,0.0042352,84579.0,84578.0,0.236468]
[1742506940346,0.0042352,84579.0,84578.0,0.369948]
[1742506940748,0.3,84583.0,84581.0,0.236458]
[1742506940967,0.0042352,84582.0,84581.0,0.236458]
[1742506941349,0.0042352,84582.0,84581.0,0.88165403]
[1742506941552,0.0041692,84588.0,84587.0,0.248264]
[1742506941785,0.0041692,84588.0,84587.0,0.36783903]
[1742506942190,0.00423782,84588.0,84587.0,0.36783903]
[1742506942953,0.00023782,84588.0,84587.0,0.36783903]
[1742506943742,0.00223782,84588.0,84587.0,0.36783903]
[1742506944333,0.00423782,84588.0,84587.0,0.36783903]
[1742506946139,0.00223782,84588.0,84587.0,0.36783903]
[1742506946340,0.00023782,84588.0,84587.0,0.36783903]
[1742506946539,0.00423782,84588.0,84587.0,0.36783903]
[1742506954028,0.00423782,84588.0,84587.0,0.50087903]
[1742506958102,0.236453,84584.0,84581.0,0.976399]
[1742506958380,0.01611771,84583.0,84582.0,0.133]
[1742506958706,0.25257171,84583.0,84582.0,0.133]
[1742506959449,0.248281,84581.0,84580.0,0.13332]
[1742506959991,0.25257671,84581.0,84580.0,0.13332]
[1742506960964,0.25457671,84581.0,84580.0,0.13332]
[1742506962503,0.25657671,84581.0,84580.0,0.13332]
[1742506963134,0.55657671,84581.0,84580.0,0.13332]
[1742506965020,0.30829571,84581.0,84580.0,0.369782]
[1742506976565,0.30846491,84581.0,84580.0,0.369782]
[1742506979910,0.00446491,84581.0,84580.0,0.369782]
[1742506980123,0.00646491,84581.0,84580.0,0.50118003]
[1742506980255,0.0041692,84581.0,84580.0,0.50118003]
[1742506980656,0.0041692,84581.0,84580.0,0.91497903]
[1742506981518,0.0021692,84581.0,84580.0,0.92951988]
[1742506981818,0.0031692,84581.0,84580.0,0.92951988]
[1742506982975,0.0011692,84581.0,84580.0,0.92951988]
[1742506983180,0.0021692,84581.0,84580.0,0.92951988]
[1742506985137,0.0011692,84581.0,84580.0,0.92951988]
[1742506986517,0.0001692,84581.0,84580.0,0.92951988]
[1742506987019,0.0001692,84581.0,84580.0,0.95262047]
[1742506992748,0.0001692,84581.0,84580.0,1.03382047]
[1742506994732,0.0004,84598.0,84597.0,0.478035]
[1742506994928,0.0004,84598.0,84597.0,0.61215088]
[1742506995104,0.0004,84598.0,84597.0,0.74471088]
[1742506995310,0.0004,84598.0,84597.0,0.76802357]
[1742506995733,0.0004,84614.0,84613.0,0.23637]
[1742506995888,0.00046862,84614.0,84613.0,0.50040303]
[1742506998406,0.00446862,84614.0,84613.0,0.50040303]
[1742506999058,0.00046862,84614.0,84613.0,0.50040303]
[1742506999253,0.00046862,84614.0,84613.0,0.48858503]
[1742506999456,0.00146862,84614.0,84613.0,0.48858503]
[1742507000615,0.00246862,84614.0,84613.0,0.48858503]
[1742507002173,0.00263772,84614.0,84613.0,0.48858503]
[1742507003230,0.00263772,84614.0,84613.0,0.48825281]
[1742507004773,0.00263772,84614.0,84613.0,0.50007081]
[1742507008398,0.00263772,84614.0,84613.0,0.23603778]
[1742507008607,0.00263772,84614.0,84606.0,0.798949]
[1742507008842,0.236381,84610.0,84607.0,0.369664]
[1742507009021,0.236378,84611.0,84607.0,0.369664]
[1742507009224,0.00432772,84610.0,84607.0,0.13328]
[1742507009377,0.24070672,84610.0,84607.0,0.369665]
[1742507009573,0.00432772,84610.0,84608.0,0.236382]
[1742507009799,0.00432772,84610.0,84607.0,0.369666]
[1742507009974,0.00432772,84610.0,84608.0,0.236383]
[1742507010566,0.00432772,84610.0,84609.0,0.236381]
[1742507010764,0.00432772,84610.0,84608.0,0.236383]
[1742507012094,0.00532772,84610.0,84608.0,0.236383]
[1742507012300,0.00632772,84610.0,84608.0,0.236383]
[1742507012927,0.00632772,84610.0,84609.0,0.13312]
[1742507013928,0.00532772,84610.0,84609.0,0.13312]
[1742507014278,0.00632772,84610.0,84609.0,0.13312]
[1742507014691,0.24170572,84610.0,84609.0,0.13312]
[1742507014890,0.24270572,84610.0,84609.0,0.13312]
[1742507018614,0.00632772,84610.0,84609.0,0.13312]
[1742507019459,0.24270572,84610.0,84609.0,0.13312]
[1742507024325,0.00632772,84610.0,84609.0,0.13312]
[1742507025127,0.00632772,84610.0,84608.0,0.0003382]
[1742507025333,0.00632772,84610.0,84609.0,0.13268]
[1742507026616,0.00632772,84610.0,84609.0,0.369061]
[1742507026919,0.00532772,84610.0,84609.0,0.369061]
[1742507027127,0.00632772,84610.0,84609.0,0.369061]
[1742507027549,0.00532772,84610.0,84609.0,0.369061]
[1742507027755,0.00532772,84610.0,84609.0,0.13268]
[1742507028015,0.00632772,84610.0,84609.0,0.13268]
[1742507028777,0.00632772,84610.0,84609.0,0.369061]
[1742507028996,0.00632772,84610.0,84609.0,0.13268]
[1742507029195,0.24270572,84610.0,84609.0,0.13268]
[1742507030865,0.00632772,84610.0,84609.0,0.42688]
[1742507031360,0.002,84610.0,84609.0,0.42688]
[1742507031768,0.002,84610.0,84609.0,0.64645503]
[1742507032743,0.001,84610.0,84609.0,0.64645503]
[1742507033084,0.0001691,84613.0,84612.0,0.248191]
[1742507033206,0.0001691,84613.0,84612.0,0.36776603]
[1742507034149,0.0001691,84613.0,84612.0,0.46390688]
[1742507034926,0.0001691,84613.0,84612.0,0.46490688]
[1742507036173,0.0001691,84613.0,84612.0,0.47490688]
[1742507038194,0.0001691,84613.0,84612.0,0.48357912]
[1742507038398,0.0001691,84613.0,84612.0,0.47490688]
[1742507039414,0.0001691,84613.0,84612.0,0.88870588]
[1742507040709,0.0001691,84613.0,84612.0,1.24540034]
[1742507040913,0.0001691,84613.0,84612.0,0.94540034]
[1742507041117,0.0001691,84613.0,84612.0,0.95040034]
[1742507041524,0.0001691,84613.0,84612.0,0.94940034]
[1742507041697,0.0001691,84613.0,84612.0,0.95040034]
[1742507043246,0.0001691,84613.0,84612.0,0.94940034]
[1742507043471,0.0001691,84613.0,84612.0,0.95140034]
[1742507043642,0.0001691,84613.0,84612.0,0.94640034]
[1742507043851,0.0001691,84613.0,84612.0,0.95140034]
[1742507044104,0.0001691,84613.0,84612.0,0.94640034]
[1742507044486,0.0001691,84613.0,84612.0,1.18016034]
[1742507045286,0.0001691,84613.0,84612.0,1.04640034]
[1742507045488,0.0001691,84613.0,84612.0,1.03740588]
[1742507045781,0.0001691,84613.0,84612.0,0.97516503]
[1742507046005,0.0001691,84613.0,84612.0,0.94178588]
[1742507046184,0.0001691,84613.0,84612.0,0.79356503]
[1742507046532,0.0001691,84613.0,84612.0,0.91542703]
[1742507047029,0.0001691,84613.0,84612.0,0.67399]
[1742507047267,0.2483571,84613.0,84612.0,0.01]
[1742507047475,0.25271988,84613.0,84612.0,0.14576]
[1742507047691,0.25271988,84613.0,84612.0,0.012]
[1742507048037,0.25271988,84613.0,84612.0,0.01]
[1742507048238,0.25271988,84613.0,84612.0,0.013]
[1742507048441,0.25271988,84613.0,84612.0,0.012]
[1742507048810,0.25471988,84613.0,84612.0,0.012]
[1742507049445,0.55471988,84613.0,84612.0,0.012]
[1742507049868,0.55471988,84613.0,84612.0,0.01]
[1742507050264,0.55571988,84613.0,84612.0,0.01]
[1742507050677,0.55571988,84613.0,84594.0,0.236422]
[1742507050678,0.236411,84599.0,84595.0,0.23642]
[1742507051344,0.00436278,84598.0,84595.0,0.23642]
[1742507051576,0.236411,84599.0,84595.0,0.23642]
[1742507051751,0.236413,84598.0,84594.0,0.23249093]
[1742507052014,0.24077478,84598.0,84595.0,0.13512]
[1742507052240,0.24077478,84598.0,84595.0,0.370539]
[1742507052771,0.24077478,84598.0,84596.0,0.236417]
[1742507052974,0.00436278,84598.0,84596.0,0.236417]
[1742507054045,0.00436278,84598.0,84596.0,0.237417]
[1742507055646,0.00436278,84598.0,84596.0,0.001]
[1742507055849,0.236415,84597.0,84596.0,0.001]
[1742507056052,0.00431981,84597.0,84596.0,0.001]
[1742507056453,0.25255481,84597.0,84596.0,0.001]
[1742507056649,0.00431981,84597.0,84595.0,0.14412]
[1742507056853,0.00431981,84597.0,84595.0,0.380537]
[1742507057076,0.24073481,84597.0,84595.0,0.14412]
[1742507057654,0.00431981,84597.0,84595.0,0.380539]
[1742507058836,0.24073581,84597.0,84595.0,0.14412]
[1742507060087,0.00431981,84597.0,84595.0,0.380539]
[1742507060494,0.00431981,84597.0,84596.0,0.236417]
[1742507060897,0.236404,84601.0,84597.0,0.236414]
[1742507061113,0.236406,84600.0,84597.0,0.236414]
[1742507062055,0.236407,84600.0,84597.0,0.236414]
[1742507064704,0.24072981,84599.0,84597.0,0.236414]
[1742507065281,0.24072981,84599.0,84596.0,0.236417]
[1742507066004,0.00431981,84599.0,84597.0,0.236414]
[1742507066384,0.00431981,84599.0,84598.0,0.236412]
[1742507066570,0.0001691,84600.0,84599.0,0.236409]
[1742507067583,0.0001691,84600.0,84599.0,0.248229]
[1742507068320,0.0001691,84600.0,84599.0,0.323929]
[1742507068522,0.0001691,84600.0,84599.0,0.44350403]
[1742507068819,0.0001691,84600.0,84599.0,0.45350403]
[1742507069230,0.0001691,84600.0,84599.0,0.46804488]
[1742507070349,0.0001691,84600.0,84599.0,0.46904488]
[1742507070891,0.0001691,84600.0,84599.0,0.46804488]
[1742507071159,0.0001691,84600.0,84599.0,0.46904488]
[1742507071566,0.0001691,84600.0,84599.0,0.51884488]
[1742507071860,0.0001691,84600.0,84599.0,0.93364388]
[1742507072096,0.0001691,84600.0,84599.0,0.93264388]
[1742507072309,0.0001691,84600.0,84599.0,0.93364388]
[1742507072527,1e-07,84600.0,84599.0,0.93364388]
[1742507075534,1e-07,84600.0,84599.0,0.94262809]
[1742507078116,1e-07,84600.0,84599.0,0.94296629]
[1742507078560,1e-07,84600.0,84599.0,1.04296629]
[1742507078991,1e-07,84600.0,84599.0,1.03398208]
[1742507079201,1e-07,84600.0,84599.0,1.06794208]
[1742507079427,1e-07,84600.0,84599.0,1.05612208]
[1742507079594,1e-07,84600.0,84599.0,1.06794208]
[1742507080005,1e-07,84600.0,84599.0,0.79394123]
[1742507080218,1e-07,84600.0,84599.0,0.94240208]
[1742507081571,1e-07,84600.0,84599.0,0.78212123]
[1742507081892,0.2482261,84600.0,84599.0,0.44824377]
[1742507082067,0.67975257,84600.0,84599.0,0.03444477]
[1742507082308,0.6839589,84600.0,84599.0,0.03444477]
[1742507082462,0.6839589,84600.0,84599.0,0.03344477]
[1742507082641,0.69562452,84600.0,84599.0,0.03244477]
[1742507082842,0.69562452,84600.0,84599.0,0.03344477]
[1742507083481,0.69562452,84600.0,84599.0,0.0103382]
[1742507084058,0.69962452,84600.0,84599.0,0.0103382]
[1742507084672,0.71815725,84600.0,84599.0,0.0103382]
[1742507085119,0.72215725,84600.0,84599.0,0.0103382]
[1742507085629,0.79955725,84600.0,84599.0,0.0103382]
[1742507085832,0.80455725,84600.0,84599.0,0.0103382]
[1742507086266,0.80455725,84600.0,84599.0,2e-07]
[1742507086473,0.80055725,84600.0,84599.0,2e-07]
[1742507086977,0.80555725,84600.0,84599.0,2e-07]
[1742507087179,0.80055725,84600.0,84599.0,2e-07]
[1742507087558,0.80555725,84600.0,84599.0,2e-07]
[1742507087760,0.83055725,84600.0,84599.0,2e-07]
[1742507087964,0.87845725,84600.0,84599.0,2e-07]
[1742507088525,0.88345725,84600.0,84599.0,2e-07]
[1742507088863,0.87845725,84600.0,84599.0,2e-07]
[1742507089319,0.88345725,84600.0,84599.0,2e-07]
[1742507089737,0.87845725,84600.0,84599.0,2e-07]
[1742507089898,0.88345725,84600.0,84599.0,2e-07]
[1742507090326,0.011823,84578.0,84577.0,0.13404]
[1742507090837,0.01610485,84578.0,84577.0,0.13404]
[1742507091248,0.55257285,84578.0,84577.0,0.13404]
[1742507091590,0.55457285,84578.0,84577.0,0.13445471]
[1742507091790,0.59009385,84578.0,84577.0,0.13445471]
[1742507092193,0.59309385,84578.0,84577.0,0.13445471]
[1742507092597,0.59309385,84578.0,84577.0,0.37092471]
[1742507092598,0.30928185,84578.0,84577.0,0.37092471]
[1742507093038,0.30928185,84578.0,84577.0,0.13445471]
[1742507093215,0.54574985,84578.0,84577.0,0.14445471]
[1742507094218,0.30928185,84578.0,84577.0,0.14445471]
[1742507094423,0.54574985,84578.0,84577.0,0.14445471]
[1742507095444,0.54574985,84578.0,84577.0,0.01041471]
[1742507095649,0.54574985,84578.0,84577.0,0.14469471]
[1742507096039,0.30928185,84578.0,84577.0,0.14469471]
[1742507096660,0.55757285,84578.0,84577.0,0.14469471]
[1742507096860,0.30928185,84578.0,84577.0,0.14469471]
[1742507097275,0.30928185,84578.0,84577.0,0.38116471]
[1742507099489,0.30928185,84578.0,84577.0,0.14469471]
[1742507100018,0.30928185,84578.0,84577.0,0.38116471]
[1742507100224,0.30928185,84578.0,84577.0,0.14469471]
[1742507100633,0.54574985,84578.0,84577.0,0.14469471]
[1742507100994,0.30928185,84578.0,84577.0,0.14469471]
[1742507101509,0.54574985,84578.0,84577.0,0.14469471]
[1742507101701,0.30928185,84578.0,84577.0,0.14469471]
[1742507101900,0.54574985,84578.0,84577.0,0.14486401]
[1742507102697,0.30928185,84578.0,84577.0,0.14486401]
[1742507103335,0.54574985,84578.0,84577.0,0.14486401]
[1742507103489,0.54374985,84578.0,84577.0,0.14486401]
[1742507103890,0.54574985,84578.0,84577.0,0.14486401]
[1742507104383,0.54274985,84578.0,84577.0,0.14486401]
[1742507104547,0.54474985,84578.0,84577.0,0.14486401]
[1742507104971,0.55657285,84578.0,84577.0,0.14486401]
[1742507105793,0.54474985,84578.0,84577.0,0.14486401]
[1742507111831,0.30828185,84578.0,84577.0,0.14486401]
[1742507113645,0.54474985,84578.0,84577.0,0.14486401]
[1742507117514,0.30828185,84578.0,84577.0,0.38133401]
[1742507118097,0.30828185,84578.0,84577.0,0.14486401]
[1742507121879,0.30828185,84578.0,84577.0,0.38133401]
[1742507123224,0.30828185,84578.0,84577.0,0.50090904]
[1742507123225,0.00828185,84578.0,84577.0,0.50090904]
[1742507123406,0.004,84578.0,84577.0,0.58973204]
[1742507124353,0.002,84578.0,84577.0,0.58973204]
[1742507124812,0.003,84578.0,84577.0,0.58973204]
[1742507125579,0.002,84578.0,84577.0,0.58973204]
[1742507125935,0.236439,84589.0,84586.0,0.236443]
[1742507126699,0.236437,84589.0,84587.0,0.236442]
[1742507127109,0.239437,84589.0,84587.0,0.236442]
[1742507127513,0.236437,84589.0,84587.0,0.236442]
[1742507127929,0.239437,84589.0,84587.0,0.236442]
[1742507128094,0.242437,84589.0,84587.0,0.236442]
[1742507128406,0.006,84589.0,84588.0,0.13392]
[1742507128843,0.003,84589.0,84588.0,0.13392]
[1742507129164,0.006,84589.0,84588.0,0.13392]
[1742507129313,0.003,84589.0,84588.0,0.13392]
[1742507129517,0.236437,84589.0,84588.0,0.13392]
[1742507129717,0.239437,84589.0,84588.0,0.13392]
[1742507129942,0.242437,84589.0,84588.0,0.13392]
[1742507130996,0.006,84589.0,84588.0,0.13392]
[1742507131205,0.242437,84589.0,84588.0,0.13392]
[1742507131371,0.006,84589.0,84588.0,0.13392]
[1742507131574,0.242437,84589.0,84588.0,0.13392]
[1742507133273,0.242437,84589.0,84587.0,0.246442]
[1742507133639,0.242437,84589.0,84587.0,0.01]
[1742507134051,0.239437,84589.0,84587.0,0.01]
[1742507134388,0.236437,84589.0,84587.0,0.01]
[1742507134964,0.003,84589.0,84587.0,0.246442]
[1742507135173,0.003,84589.0,84588.0,0.23644]
[1742507135931,0.006,84589.0,84588.0,0.23644]
[1742507136135,0.003,84589.0,84588.0,0.23644]
[1742507136334,0.236432,84591.0,84588.0,0.23644]
[1742507136757,0.003,84589.0,84588.0,0.23644]
[1742507137170,0.236432,84591.0,84588.0,0.23644]
[1742507137588,0.240432,84591.0,84588.0,0.23644]
[1742507137863,0.003,84589.0,84588.0,0.23644]
[1742507138073,0.240432,84591.0,84588.0,0.23644]
[1742507138507,0.236435,84590.0,84588.0,0.23644]
[1742507138911,0.236438,84589.0,84587.0,0.2366113]
[1742507139055,0.240432,84591.0,84588.0,0.23644]
[1742507139255,0.003,84589.0,84588.0,0.23644]
[1742507139678,0.00428351,84589.0,84588.0,0.01]
[1742507139886,0.00428351,84589.0,84588.0,0.24644]
[1742507140742,0.00728351,84589.0,84588.0,0.24644]
[1742507140946,0.003,84589.0,84588.0,0.24644]
[1742507141153,0.00728351,84589.0,84588.0,0.24644]
[1742507141563,0.01028351,84589.0,84588.0,0.24644]
[1742507143864,0.01028351,84589.0,84588.0,0.37984]
[1742507150724,0.01028351,84589.0,84588.0,0.3800093]
[1742507154753,0.01028351,84589.0,84588.0,0.2466093]
[1742507154953,0.01028351,84589.0,84588.0,0.3807693]
[1742507156549,0.01028351,84589.0,84588.0,0.1443293]
[1742507157095,0.24672051,84589.0,84588.0,0.1443293]
[1742507157304,0.25854151,84589.0,84588.0,0.1443293]
[1742507157507,0.01028351,84589.0,84588.0,0.1443293]
[1742507157950,0.01028351,84589.0,84588.0,0.3807693]
[1742507166594,0.00928351,84589.0,84588.0,0.3807693]
[1742507170601,0.00928351,84589.0,84588.0,0.3748733]
[1742507173674,0.00928351,84589.0,84588.0,0.1384333]
[1742507173806,0.25754151,84589.0,84588.0,0.1384333]
[1742507174856,0.55754151,84589.0,84588.0,0.1384333]
[1742507176102,0.55754151,84589.0,84588.0,0.0042733]
[1742507176347,0.72551654,84589.0,84588.0,0.0042733]
[1742507176565,0.76103554,84589.0,84588.0,0.0042733]
[1742507180750,0.77001115,84589.0,84588.0,0.0042733]
[1742507183084,0.73449215,84589.0,84588.0,0.0042733]
[1742507186038,0.73483075,84589.0,84588.0,0.0042733]
[1742507190470,0.68643075,84589.0,84588.0,0.0042733]
[1742507191559,0.68443075,84589.0,84588.0,0.0042733]
[1742507191903,0.68843075,84589.0,84588.0,0.0042733]
[1742507192232,0.68543075,84589.0,84588.0,0.0042733]
[1742507192385,0.68943075,84589.0,84588.0,0.0042733]
[1742507202113,0.83174417,84589.0,84588.0,0.0042733]
[1742507202504,0.83174417,84589.0,84577.0,0.00058401]
[1742507202505,0.630191,84578.0,84577.0,0.00058401]
[1742507202747,0.80083795,84578.0,84577.0,0.00058401]
[1742507203246,0.80583795,84578.0,84577.0,0.00058401]
[1742507204211,0.548355,84556.0,84555.0,0.13344]
[1742507204514,0.55260434,84556.0,84555.0,0.13344]
[1742507205442,0.248361,84554.0,84552.0,0.0833]
[1742507206144,0.25261034,84554.0,84552.0,0.0833]
[1742507207039,0.25361034,84554.0,84552.0,0.0833]
[1742507207639,0.25361034,84554.0,84550.0,0.26420455]
[1742507207853,0.26530893,84554.0,84550.0,0.26420455]
[1742507208264,0.26630893,84554.0,84550.0,0.26420455]
[1742507208847,0.26430893,84554.0,84550.0,0.26420455]
[1742507209246,0.27030893,84554.0,84550.0,0.26420455]
[1742507209450,0.27030893,84554.0,84553.0,0.00064237]
[1742507211295,0.57030893,84554.0,84553.0,0.00064237]
[1742507227899,0.56730893,84554.0,84553.0,0.00064237]
[1742507228100,0.57130893,84554.0,84553.0,0.00064237]
[1742507229844,0.56830893,84554.0,84553.0,0.00064237]
[1742507230245,0.57230893,84554.0,84553.0,0.00064237]
[1742507231206,0.69188396,84554.0,84553.0,0.00064237]
[1742507236093,0.77188396,84554.0,84553.0,3.7e-07]
[1742507236865,0.76788396,84554.0,84553.0,3.7e-07]
[1742507237069,0.77288396,84554.0,84553.0,3.7e-07]
[1742507237226,0.77388396,84554.0,84553.0,3.7e-07]
[1742507237432,0.76888396,84554.0,84553.0,3.7e-07]
[1742507237635,0.77888396,84554.0,84553.0,3.7e-07]
[1742507238038,0.79242692,84554.0,84553.0,3.7e-07]
[1742507238236,0.99581881,84554.0,84553.0,3.7e-07]
[1742507238459,0.93210692,84554.0,84553.0,3.7e-07]
[1742507239393,0.95621475,84554.0,84553.0,3.7e-07]
[1742507239900,0.94621475,84554.0,84553.0,3.7e-07]
[1742507240101,0.95121475,84554.0,84553.0,3.7e-07]
[1742507240521,0.95621475,84554.0,84553.0,3.7e-07]
[1742507243943,0.55337,84551.0,84550.0,9.2e-07]
[1742507244144,0.311828,84544.0,84543.0,6e-07]
[1742507244353,0.548402,84540.0,84539.0,0.000299]
[1742507244652,0.67297703,84540.0,84539.0,0.000299]
[1742507244972,0.67718786,84540.0,84539.0,0.000299]
[1742507245318,0.67718786,84540.0,84539.0,0.00036762]
[1742507246704,0.68218786,84540.0,84539.0,0.00036762]
[1742507247039,0.69192786,84540.0,84539.0,0.00036762]
[1742507247873,0.71607092,84540.0,84539.0,0.00036762]
[1742507248072,0.72512101,84540.0,84539.0,0.00036762]
[1742507248473,0.74366758,84540.0,84539.0,0.00036762]
[1742507249966,0.82236758,84540.0,84539.0,0.00036762]
[1742507253721,0.81736758,84540.0,84539.0,0.00036762]
[1742507253923,0.82236758,84540.0,84539.0,0.00036762]
[1742507254146,0.81736758,84540.0,84539.0,0.00036762]
[1742507254302,0.82236758,84540.0,84539.0,6.2e-07]
[1742507257195,0.74366758,84540.0,84539.0,6.2e-07]
[1742507257392,0.74366758,84540.0,84539.0,9.2e-07]
[1742507257694,0.74400618,84540.0,84539.0,9.2e-07]
[1742507258695,0.54842,84534.0,84523.0,0.0003382]
[1742507258903,0.66799503,84534.0,84533.0,0.00042171]
[1742507259112,0.67218654,84534.0,84533.0,0.00042171]
[1742507259926,0.67718654,84534.0,84533.0,0.00042171]
[1742507260681,0.68218654,84534.0,84533.0,0.00042171]
[1742507264315,0.68692654,84534.0,84533.0,0.00042171]
[1742507265846,0.67692654,84534.0,84533.0,0.00042171]
[1742507266185,0.68192654,84534.0,84533.0,0.00042171]
[1742507266581,0.548437,84528.0,84523.0,0.0003382]
[1742507266755,0.66801203,84528.0,84523.0,0.0003382]
[1742507267151,0.67220354,84528.0,84523.0,0.0003382]
[1742507267917,0.71275054,84528.0,84523.0,0.0003382]
[1742507268270,0.71775054,84528.0,84523.0,0.0003382]
[1742507270084,0.71275054,84528.0,84523.0,0.0003382]
[1742507270314,0.71775054,84528.0,84523.0,0.0003382]
[1742507270534,0.72275054,84528.0,84523.0,0.0003382]
[1742507271088,0.71275054,84528.0,84523.0,0.0003382]
[1742507271237,0.72275054,84528.0,84523.0,0.0003382]
[1742507271648,0.71775054,84528.0,84523.0,0.0003382]
[1742507271867,0.72275054,84528.0,84523.0,0.0003382]
[1742507272451,0.7412992,84528.0,84523.0,0.0003382]
[1742507274426,0.7412992,84528.0,84527.0,2e-07]
[1742507281050,0.7362992,84528.0,84527.0,2e-07]
[1742507281450,0.7412992,84528.0,84527.0,2e-07]
[1742507281690,0.7362992,84528.0,84527.0,2e-07]
[1742507282090,0.7412992,84528.0,84527.0,2e-07]
[1742507282307,0.7362992,84528.0,84527.0,2e-07]
[1742507283067,0.7412992,84528.0,84527.0,2e-07]
[1742507283279,0.7412992,84528.0,84523.0,0.0002984]
[1742507283280,0.553449,84524.0,84523.0,0.0002984]
[1742507283474,0.67302403,84524.0,84523.0,0.0002984]
[1742507283675,0.67719547,84524.0,84523.0,0.0002984]
[1742507284362,0.68219547,84524.0,84523.0,0.0002984]
[1742507284924,0.68719547,84524.0,84523.0,0.0002984]
[1742507285523,0.553455,84522.0,84521.0,2.5e-07]
[1742507285741,0.67303003,84522.0,84521.0,2.5e-07]
[1742507286247,0.67720147,84522.0,84521.0,2.5e-07]
[1742507286626,0.68220147,84522.0,84521.0,2.5e-07]
[1742507287958,0.67720147,84522.0,84521.0,2.5e-07]
[1742507288163,0.68720147,84522.0,84521.0,2.5e-07]
[1742507288393,0.68220147,84522.0,84521.0,2.5e-07]
[1742507288794,0.70075305,84522.0,84521.0,2.5e-07]
[1742507289134,0.70575305,84522.0,84521.0,2.5e-07]
[1742507292111,0.71049305,84522.0,84521.0,2.5e-07]
[1742507292888,0.71049305,84522.0,84521.0,0.00016955]
[1742507293918,0.553458,84521.0,84520.0,1e-08]
[1742507294094,0.67303303,84521.0,84520.0,0.00012446]
[1742507294301,0.67719964,84521.0,84520.0,0.00012446]
[1742507297511,0.68719964,84521.0,84520.0,0.00012446]
[1742507304462,0.553473,84516.0,84515.0,0.0003384]
[1742507304673,0.67304803,84516.0,84515.0,0.0003384]
[1742507304863,0.67721585,84516.0,84515.0,0.0003384]
[1742507305061,0.80181585,84516.0,84515.0,0.0003384]
[1742507305244,0.67721585,84516.0,84515.0,0.0003384]
[1742507305830,0.68221585,84516.0,84515.0,0.0003384]
[1742507307656,0.68721585,84516.0,84515.0,0.0003384]
[1742507308816,0.69611253,84516.0,84515.0,0.0003384]
[1742507310082,0.73166653,84516.0,84515.0,0.0003384]
[1742507314645,0.011832,84512.0,84511.0,0.001]
[1742507314820,0.43140703,84512.0,84511.0,0.001]
[1742507315002,0.43556006,84512.0,84511.0,0.001]
[1742507315604,0.67221206,84512.0,84511.0,0.001]
[1742507315806,0.70776706,84512.0,84511.0,0.001]
[1742507316285,0.71276706,84512.0,84511.0,0.001]
[1742507317875,0.71776706,84512.0,84511.0,0.001]
[1742507322676,0.71276706,84512.0,84511.0,0.001]
[1742507322951,0.70776706,84512.0,84511.0,0.001]
[1742507323151,0.71276706,84512.0,84511.0,0.001]
[1742507323857,0.71276706,84512.0,84511.0,1e-06]
[1742507324052,0.71776706,84512.0,84511.0,1e-06]
[1742507324955,0.72276706,84512.0,84511.0,1e-06]
[1742507326958,0.74132013,84512.0,84511.0,1e-06]
[1742507330380,0.74132013,84512.0,84511.0,0.0001703]
[1742507331381,0.74132013,84512.0,84511.0,3e-07]
[1742507332406,0.73632013,84512.0,84511.0,3e-07]
[1742507334009,0.548502,84506.0,84505.0,0.00043364]
[1742507334208,0.66807703,84506.0,84505.0,0.00043364]
[1742507334436,0.67223277,84506.0,84505.0,0.00043364]
[1742507335058,0.67723277,84506.0,84505.0,0.00043364]
[1742507335268,0.71279077,84506.0,84505.0,0.00043364]
[1742507335423,0.71779077,84506.0,84505.0,0.00043364]
[1742507337007,0.548531,84496.0,84495.0,0.0813]
[1742507337283,0.66810603,84496.0,84495.0,0.0813]
[1742507337482,0.67226177,84496.0,84495.0,0.0813]
[1742507337785,0.70782077,84496.0,84495.0,0.0813]
[1742507338199,0.71282077,84496.0,84495.0,0.0813]
[1742507338701,0.71782077,84496.0,84495.0,0.0813]
[1742507341587,0.72940336,84496.0,84495.0,0.0813]
[1742507342924,0.54854,84493.0,84490.0,0.0821]
[1742507343135,0.66811503,84493.0,84492.0,0.0002938]
[1742507343512,0.67227077,84493.0,84492.0,0.0002938]
[1742507344313,0.67727077,84493.0,84492.0,0.0002938]
[1742507344756,0.68227077,84493.0,84492.0,0.0002938]
[1742507347357,0.71783077,84493.0,84492.0,0.0002938]
[1742507357288,0.71783077,84493.0,84492.0,0.0102938]
[1742507363360,0.71283077,84493.0,84492.0,0.0102938]
[1742507363723,0.71783077,84493.0,84492.0,0.0102938]
[1742507364608,0.71283077,84493.0,84492.0,0.0102938]
[1742507364804,0.67727077,84493.0,84492.0,0.0102938]
[1742507365256,0.68227077,84493.0,84492.0,0.0102938]
[1742507368883,0.70082685,84493.0,84492.0,0.0102938]
[1742507370909,0.69582685,84493.0,84492.0,0.0102938]
[1742507371171,0.70082685,84493.0,84492.0,0.0102938]
[1742507371670,0.69582685,84493.0,84492.0,0.0102938]
[1742507372311,0.70082685,84493.0,84492.0,0.0102938]
[1742507372585,0.69582685,84493.0,84492.0,0.0102938]
[1742507373014,0.70082685,84493.0,84492.0,0.0102938]
[1742507373484,1.2200832,84490.0,84489.0,0.00047343]
[1742507373693,1.33965823,84490.0,84489.0,0.00047343]
[1742507374051,1.34377222,84490.0,84489.0,0.00047343]
[1742507374700,1.34877222,84490.0,84489.0,0.00047343]